[Event "*** Titled Tuesday Blitz"]
[Site "Chess.com"]
[Date "2021.02.16"]
[Round "9"]
[White "Piotrek1979"]
[Black "picturesquecheck"]
[Result "1-0"]
[WhiteElo "2402"]
[BlackElo "2256"]
[TimeControl "180+1"]
[EndTime "11:49:02 PST"]
[Termination "Piotrek1979 won by resignation"]

1. e4 {[%clk 0:02:38.9]} 1... c5 {[%clk 0:02:53.2]} 2. Nf3 {[%clk 0:02:38.1]}
2... Nc6 {[%clk 0:02:52]} 3. d4 {[%clk 0:02:39]} 3... cxd4 {[%clk 0:02:52.4]} 4.
Nxd4 {[%clk 0:02:39.4]} 4... Nf6 {[%clk 0:02:53]} 5. Nc3 {[%clk 0:02:38.4]} 5...
d6 {[%clk 0:02:53.5]} 6. Bg5 {[%clk 0:02:38.3]} 6... e6 {[%clk 0:02:53.3]} 7.
Qd2 {[%clk 0:02:38.3]} 7... a6 {[%clk 0:02:53.8]} 8. O-O-O {[%clk 0:02:37.8]}
8... h6 {[%clk 0:02:54.4]} 9. Be3 {[%clk 0:02:34.7]} 9... Bd7 {[%clk 0:02:51.5]}
10. f3 {[%clk 0:02:33.2]} 10... Be7 {[%clk 0:02:51.4]} 11. g4 {[%clk 0:02:30]}
11... b5 {[%clk 0:02:50.7]} 12. Nxc6 {[%clk 0:02:25.6]} 12... Bxc6 {[%clk
0:02:49.8]} 13. Ne2 {[%clk 0:02:25.5]} 13... Rc8 {[%clk 0:02:47.5]} 14. Nd4
{[%clk 0:02:24]} 14... Bb7 {[%clk 0:02:47.1]} 15. Kb1 {[%clk 0:02:22.8]} 15...
Qc7 {[%clk 0:02:45.2]} 16. h4 {[%clk 0:02:11.6]} 16... Nd7 {[%clk 0:02:43.6]}
17. Bh3 {[%clk 0:02:07.1]} 17... Ne5 {[%clk 0:02:41.8]} 18. g5 {[%clk
0:02:03.3]} 18... Nc4 {[%clk 0:02:39]} 19. Qf2 {[%clk 0:02:02.4]} 19... Nxe3
{[%clk 0:02:38.6]} 20. Qxe3 {[%clk 0:02:02.1]} 20... d5 {[%clk 0:02:10]} 21. e5
{[%clk 0:02:00.3]} 21... Bc5 {[%clk 0:02:07.2]} 22. g6 {[%clk 0:01:55.7]} 22...
O-O {[%clk 0:02:06.8]} 23. gxf7+ {[%clk 0:01:53.5]} 23... Kh8 {[%clk 0:02:06.6]}
24. Bxe6 {[%clk 0:01:31]} 24... Bxd4 {[%clk 0:02:04.9]} 25. Qxd4 {[%clk
0:01:31.9]} 25... Qxc2+ {[%clk 0:02:04.6]} 26. Ka1 {[%clk 0:01:31.7]} 26... Rc4
{[%clk 0:02:03.1]} 27. Qd2 {[%clk 0:01:26.4]} 27... Qg6 {[%clk 0:01:31.9]} 28.
Bxd5 {[%clk 0:01:18.4]} 28... Bxd5 {[%clk 0:01:26.1]} 29. Qxd5 {[%clk
0:01:19.3]} 29... Rxf7 {[%clk 0:01:25.9]} 30. e6 {[%clk 0:01:01]} 30... Re7
{[%clk 0:01:23.3]} 31. Qd8+ {[%clk 0:00:58.9]} 31... Re8 {[%clk 0:01:20]} 32. e7
{[%clk 0:00:58.8]} 32... Kh7 {[%clk 0:01:15.3]} 33. Rhg1 {[%clk 0:00:54.5]}
33... Qf7 {[%clk 0:01:02.9]} 34. Rde1 {[%clk 0:00:51.8]} 34... Ra4 {[%clk
0:00:49.1]} 35. Qd3+ {[%clk 0:00:47]} 35... Kh8 {[%clk 0:00:48.2]} 36. b3 {[%clk
0:00:42.4]} 36... Rf4 {[%clk 0:00:46.8]} 37. Rg3 {[%clk 0:00:34.2]} 37... Qf6+
{[%clk 0:00:45.5]} 38. Kb1 {[%clk 0:00:32.5]} 38... Rxh4 {[%clk 0:00:31.2]} 39.
Rg6 {[%clk 0:00:19.2]} 39... Qf7 {[%clk 0:00:20.5]} 40. Rge6 {[%clk 0:00:18.8]}
40... Rh2 {[%clk 0:00:19.2]} 41. Qc3 {[%clk 0:00:18.2]} 41... Kh7 {[%clk
0:00:18.9]} 42. Ka1 {[%clk 0:00:17.1]} 42... Qf5 {[%clk 0:00:16.7]} 43. R6e5
{[%clk 0:00:14.8]} 43... Qf6 {[%clk 0:00:15.3]} 44. Qd3+ {[%clk 0:00:14.2]}
44... Kh8 {[%clk 0:00:15.7]} 45. Kb1 {[%clk 0:00:13.6]} 45... Rxe7 {[%clk
0:00:13]} 46. Qd8+ {[%clk 0:00:11.8]} 46... Kh7 {[%clk 0:00:13.3]} 47. Qxe7
{[%clk 0:00:11.5]} 47... Qxf3 {[%clk 0:00:13.4]} 48. R5e3 {[%clk 0:00:09.6]}
48... Qf2 {[%clk 0:00:12.9]} 49. Qe4+ {[%clk 0:00:10.5]} 49... Kh8 {[%clk
0:00:13.1]} 50. Qe8+ {[%clk 0:00:09.7]} 50... Kh7 {[%clk 0:00:13.2]} 51. Qe4+
{[%clk 0:00:10.6]} 51... Kh8 {[%clk 0:00:13.3]} 52. R3e2 {[%clk 0:00:11.5]}
52... Qf6 {[%clk 0:00:09.1]} 53. Qe8+ {[%clk 0:00:11.2]} 53... Kh7 {[%clk
0:00:08.4]} 54. Qe4+ {[%clk 0:00:12.1]} 54... g6 {[%clk 0:00:06.9]} 55. Rxh2
{[%clk 0:00:12.1]} 1-0

[Event "*** Titled Tuesday Blitz"]
[Site "Chess.com"]
[Date "2021.02.16"]
[Round "9"]
[White "Markov_Mikhail"]
[Black "dretch"]
[Result "1/2-1/2"]
[WhiteElo "2717"]
[BlackElo "2846"]
[TimeControl "180+1"]
[EndTime "11:49:04 PST"]
[Termination "Game drawn by repetition"]

1. c4 {[%clk 0:03:00.9]} 1... c6 {[%clk 0:02:58.6]} 2. Nf3 {[%clk 0:03:00.9]}
2... d5 {[%clk 0:02:58.6]} 3. e3 {[%clk 0:03:01.8]} 3... Bf5 {[%clk 0:02:56.9]}
4. Nc3 {[%clk 0:03:01.5]} 4... e6 {[%clk 0:02:56]} 5. d4 {[%clk 0:03:01.1]} 5...
Nd7 {[%clk 0:02:55.7]} 6. Bd3 {[%clk 0:03:01.2]} 6... Bxd3 {[%clk 0:02:54.4]} 7.
Qxd3 {[%clk 0:03:02.1]} 7... Bb4 {[%clk 0:02:53.9]} 8. O-O {[%clk 0:03:01.8]}
8... Ngf6 {[%clk 0:02:53.4]} 9. Nd2 {[%clk 0:02:45.6]} 9... O-O {[%clk
0:02:47.2]} 10. e4 {[%clk 0:02:40.7]} 10... Bxc3 {[%clk 0:02:43.2]} 11. bxc3
{[%clk 0:02:40.4]} 11... dxe4 {[%clk 0:02:41.6]} 12. Nxe4 {[%clk 0:02:41.3]}
12... Nxe4 {[%clk 0:02:40.4]} 13. Qxe4 {[%clk 0:02:42.2]} 13... Qa5 {[%clk
0:02:40.1]} 14. Qf3 {[%clk 0:02:09.2]} 14... Rac8 {[%clk 0:02:29.7]} 15. a4
{[%clk 0:02:06]} 15... b6 {[%clk 0:02:16.6]} 16. Rd1 {[%clk 0:01:16.7]} 16...
Qa6 {[%clk 0:02:02.6]} 17. c5 {[%clk 0:01:07.6]} 17... bxc5 {[%clk 0:01:58]} 18.
dxc5 {[%clk 0:01:08.5]} 18... Rfd8 {[%clk 0:01:53.1]} 19. Bg5 {[%clk 0:01:01]}
19... Ne5 {[%clk 0:01:39.6]} 20. Rxd8+ {[%clk 0:00:51.9]} 20... Rxd8 {[%clk
0:01:37.5]} 21. Qg3 {[%clk 0:00:52.5]} 21... Qxa4 {[%clk 0:01:05.3]} 22. Rf1
{[%clk 0:00:52.3]} 22... Rd5 {[%clk 0:01:04]} 23. Bf6 {[%clk 0:00:50.6]} 23...
g6 {[%clk 0:00:16]} 24. Bxe5 {[%clk 0:00:49.2]} 24... Rd1 {[%clk 0:00:16.6]} 25.
Qe3 {[%clk 0:00:25]} 25... Rxf1+ {[%clk 0:00:14.6]} 26. Kxf1 {[%clk 0:00:25]}
26... Qb5+ {[%clk 0:00:06.5]} 27. Ke1 {[%clk 0:00:20.3]} 27... Qb1+ {[%clk
0:00:05.8]} 28. Ke2 {[%clk 0:00:20.9]} 28... Qc2+ {[%clk 0:00:05.4]} 29. Kf3
{[%clk 0:00:20.3]} 29... Qf5+ {[%clk 0:00:05.1]} 30. Kg3 {[%clk 0:00:20.8]}
30... h5 {[%clk 0:00:04.9]} 31. h3 {[%clk 0:00:21.4]} 31... g5 {[%clk
0:00:04.6]} 32. Bd4 {[%clk 0:00:19.4]} 32... a5 {[%clk 0:00:04.3]} 33. c4 {[%clk
0:00:16.6]} 33... h4+ {[%clk 0:00:03.9]} 34. Kh2 {[%clk 0:00:16.2]} 34... a4
{[%clk 0:00:04.4]} 35. Qe5 {[%clk 0:00:14]} 35... Qxe5+ {[%clk 0:00:03.9]} 36.
Bxe5 {[%clk 0:00:14.9]} 36... Kh7 {[%clk 0:00:04.4]} 37. g4 {[%clk 0:00:10.7]}
37... hxg3+ {[%clk 0:00:02]} 38. fxg3 {[%clk 0:00:10.8]} 38... Kg6 {[%clk
0:00:02.2]} 39. Bb2 {[%clk 0:00:10.7]} 39... Kf5 {[%clk 0:00:02.9]} 40. Kg2
{[%clk 0:00:11.1]} 40... Ke4 {[%clk 0:00:03.2]} 41. Kf2 {[%clk 0:00:10.4]} 41...
f5 {[%clk 0:00:03.5]} 42. h4 {[%clk 0:00:08.5]} 42... gxh4 {[%clk 0:00:04.4]}
43. gxh4 {[%clk 0:00:09]} 43... Kf4 {[%clk 0:00:05.3]} 44. Bf6 {[%clk 0:00:08]}
44... Kg4 {[%clk 0:00:05.6]} 45. Ke3 {[%clk 0:00:07.1]} 45... f4+ {[%clk
0:00:05.9]} 46. Kf2 {[%clk 0:00:07.3]} 46... Kf5 {[%clk 0:00:06.1]} 47. Bb2
{[%clk 0:00:06.6]} 47... e5 {[%clk 0:00:06.6]} 48. h5 {[%clk 0:00:06.9]} 48...
e4 {[%clk 0:00:07.1]} 49. h6 {[%clk 0:00:07.4]} 49... Kg6 {[%clk 0:00:07.9]} 50.
Bg7 {[%clk 0:00:07.1]} 50... Kh7 {[%clk 0:00:07.7]} 51. Kg2 {[%clk 0:00:07.2]}
51... Kg6 {[%clk 0:00:07.7]} 52. Kh3 {[%clk 0:00:07.1]} 52... a3 {[%clk
0:00:08.1]} 53. Kg4 {[%clk 0:00:05.6]} 53... e3 {[%clk 0:00:07.9]} 54. Kf3
{[%clk 0:00:06.1]} 54... a2 {[%clk 0:00:08]} 55. Ke2 {[%clk 0:00:04.5]} 55...
Kh7 {[%clk 0:00:07.9]} 56. Kf3 {[%clk 0:00:04.9]} 56... Kg6 {[%clk 0:00:08.5]}
57. Ke2 {[%clk 0:00:05.4]} 57... Kh7 {[%clk 0:00:08.9]} 58. Kd3 {[%clk
0:00:05.9]} 58... Kg6 {[%clk 0:00:09]} 59. Ke2 {[%clk 0:00:04.4]} 1/2-1/2

[Event "*** Titled Tuesday Blitz"]
[Site "Chess.com"]
[Date "2021.02.16"]
[Round "9"]
[White "AlexSuv"]
[Black "northridgehawk"]
[Result "1-0"]
[WhiteElo "2452"]
[BlackElo "2337"]
[TimeControl "180+1"]
[EndTime "11:49:04 PST"]
[Termination "AlexSuv won by checkmate"]

1. d4 {[%clk 0:03:00.9]} 1... f5 {[%clk 0:02:59.4]} 2. g3 {[%clk 0:02:58.9]}
2... Nf6 {[%clk 0:02:59.2]} 3. Bg2 {[%clk 0:02:57.8]} 3... g6 {[%clk 0:02:58.9]}
4. Nf3 {[%clk 0:02:54.6]} 4... Bg7 {[%clk 0:02:59.3]} 5. O-O {[%clk 0:02:55.5]}
5... O-O {[%clk 0:02:58.9]} 6. c4 {[%clk 0:02:56.4]} 6... c6 {[%clk 0:02:58.9]}
7. Nc3 {[%clk 0:02:56.4]} 7... d6 {[%clk 0:02:58.7]} 8. Rb1 {[%clk 0:02:56.5]}
8... a5 {[%clk 0:02:57.8]} 9. a3 {[%clk 0:02:54.8]} 9... Na6 {[%clk 0:02:57.5]}
10. b4 {[%clk 0:02:52.9]} 10... axb4 {[%clk 0:02:56.5]} 11. axb4 {[%clk
0:02:53.8]} 11... e5 {[%clk 0:02:53.2]} 12. dxe5 {[%clk 0:02:39.5]} 12... Ng4
{[%clk 0:02:51]} 13. b5 {[%clk 0:02:30.2]} 13... Nc5 {[%clk 0:02:49.9]} 14. bxc6
{[%clk 0:02:29.6]} 14... dxe5 {[%clk 0:02:38.6]} 15. cxb7 {[%clk 0:02:23.7]}
15... Bxb7 {[%clk 0:02:39.5]} 16. h3 {[%clk 0:02:13.5]} 16... e4 {[%clk
0:02:11.5]} 17. Ng5 {[%clk 0:01:28.6]} 17... Ne5 {[%clk 0:02:08]} 18. Nd5 {[%clk
0:01:24.9]} 18... Nxc4 {[%clk 0:01:58.3]} 19. Rxb7 {[%clk 0:01:12.1]} 19... Nxb7
{[%clk 0:01:57.4]} 20. Ne6 {[%clk 0:01:11.9]} 20... Qd6 {[%clk 0:01:49.8]} 21.
Nxf8 {[%clk 0:01:06.5]} 21... Rxf8 {[%clk 0:01:43.4]} 22. Ne3 {[%clk 0:01:05.3]}
22... Qxd1 {[%clk 0:01:37.6]} 23. Rxd1 {[%clk 0:01:06.2]} 23... Nxe3 {[%clk
0:01:29.6]} 24. Bxe3 {[%clk 0:01:07.1]} 24... Rd8 {[%clk 0:01:26.7]} 25. Rb1
{[%clk 0:01:05.4]} 25... Nd6 {[%clk 0:01:25.5]} 26. g4 {[%clk 0:00:55.9]} 26...
Nc4 {[%clk 0:01:22.6]} 27. Bg5 {[%clk 0:00:54.6]} 27... Rd7 {[%clk 0:01:17.9]}
28. gxf5 {[%clk 0:00:51.6]} 28... gxf5 {[%clk 0:01:17.4]} 29. h4 {[%clk
0:00:49.9]} 29... Be5 {[%clk 0:01:11.6]} 30. Bh3 {[%clk 0:00:45.8]} 30... Nd6
{[%clk 0:01:08.6]} 31. Rd1 {[%clk 0:00:35.4]} 31... Rg7 {[%clk 0:01:05.7]} 32.
Kh1 {[%clk 0:00:28.9]} 32... Kf7 {[%clk 0:01:05.7]} 33. f4 {[%clk 0:00:21.5]}
33... exf3 {[%clk 0:01:03]} 34. exf3 {[%clk 0:00:22.4]} 34... Ke6 {[%clk
0:00:36.6]} 35. Re1 {[%clk 0:00:22.6]} 35... Kd5 {[%clk 0:00:31.7]} 36. Bg2
{[%clk 0:00:22.6]} 36... f4 {[%clk 0:00:30.6]} 37. Bh3 {[%clk 0:00:20.5]} 37...
Nc4 {[%clk 0:00:29.6]} 38. Rd1+ {[%clk 0:00:19.8]} 38... Kc5 {[%clk 0:00:28.3]}
39. Rc1 {[%clk 0:00:20]} 39... Kb4 {[%clk 0:00:22.9]} 40. Bf5 {[%clk 0:00:18.9]}
40... Ne3 {[%clk 0:00:17.1]} 41. Be4 {[%clk 0:00:18.4]} 41... h6 {[%clk
0:00:15.1]} 42. Bxh6 {[%clk 0:00:18.1]} 42... Rg3 {[%clk 0:00:15]} 43. Bg5
{[%clk 0:00:18.5]} 43... Bd4 {[%clk 0:00:13.7]} 44. Kh2 {[%clk 0:00:16.8]} 44...
Rg2+ {[%clk 0:00:13.6]} 45. Kh3 {[%clk 0:00:16.6]} 45... Rf2 {[%clk 0:00:12.8]}
46. Rb1+ {[%clk 0:00:17]} 46... Kc3 {[%clk 0:00:12.4]} 47. Be7 {[%clk
0:00:16.5]} 47... Nc4 {[%clk 0:00:10.9]} 48. Rc1+ {[%clk 0:00:16.2]} 48... Kb3
{[%clk 0:00:08.1]} 49. Bd5 {[%clk 0:00:16.6]} 49... Bc3 {[%clk 0:00:07.2]} 50.
Bxc4+ {[%clk 0:00:13.5]} 50... Kxc4 {[%clk 0:00:08.1]} 51. Bf6 {[%clk
0:00:13.2]} 51... Rxf3+ {[%clk 0:00:08.2]} 52. Kg4 {[%clk 0:00:13.8]} 52... Rd3
{[%clk 0:00:07.4]} 53. Rxc3+ {[%clk 0:00:12.9]} 53... Rxc3 {[%clk 0:00:06.6]}
54. Bxc3 {[%clk 0:00:13.8]} 54... Kxc3 {[%clk 0:00:06.8]} 55. Kxf4 {[%clk
0:00:14.2]} 55... Kc4 {[%clk 0:00:07.3]} 56. Kf5 {[%clk 0:00:14.7]} 56... Kd5
{[%clk 0:00:08.2]} 57. Kg6 {[%clk 0:00:15.3]} 57... Kc5 {[%clk 0:00:09]} 58. h5
{[%clk 0:00:15.9]} 58... Kd6 {[%clk 0:00:09]} 59. h6 {[%clk 0:00:16.8]} 59...
Ke7 {[%clk 0:00:09.2]} 60. h7 {[%clk 0:00:17.7]} 60... Kf8 {[%clk 0:00:09.9]}
61. h8=Q+ {[%clk 0:00:18.4]} 61... Ke7 {[%clk 0:00:10.3]} 62. Qd4 {[%clk
0:00:18.8]} 62... Ke6 {[%clk 0:00:10.2]} 63. Kg5 {[%clk 0:00:18.7]} 63... Kf7
{[%clk 0:00:10.2]} 64. Qb6 {[%clk 0:00:18.8]} 64... Ke7 {[%clk 0:00:10.4]} 65.
Qc6 {[%clk 0:00:19.1]} 65... Kf8 {[%clk 0:00:11.3]} 66. Qd7 {[%clk 0:00:18.9]}
66... Kg8 {[%clk 0:00:11.3]} 67. Kg6 {[%clk 0:00:19.5]} 67... Kh8 {[%clk
0:00:12.2]} 68. Qd8# {[%clk 0:00:19.8]} 1-0

[Event "*** Titled Tuesday Blitz"]
[Site "Chess.com"]
[Date "2021.02.16"]
[Round "9"]
[White "Andrakhanova"]
[Black "SanQui14"]
[Result "1-0"]
[WhiteElo "2280"]
[BlackElo "2411"]
[TimeControl "180+1"]
[EndTime "11:49:05 PST"]
[Termination "Andrakhanova won on time"]

1. c4 {[%clk 0:02:57.8]} 1... Nf6 {[%clk 0:02:58.7]} 2. Nc3 {[%clk 0:02:56.7]}
2... g6 {[%clk 0:02:58.5]} 3. g3 {[%clk 0:02:57]} 3... Bg7 {[%clk 0:02:58.7]} 4.
Bg2 {[%clk 0:02:57.7]} 4... O-O {[%clk 0:02:59.3]} 5. Nf3 {[%clk 0:02:55.7]}
5... d6 {[%clk 0:02:59.7]} 6. d4 {[%clk 0:02:55.9]} 6... c6 {[%clk 0:03:00.2]}
7. O-O {[%clk 0:02:55.9]} 7... Qa5 {[%clk 0:03:00.8]} 8. d5 {[%clk 0:02:47.7]}
8... cxd5 {[%clk 0:02:58]} 9. cxd5 {[%clk 0:02:46]} 9... Na6 {[%clk 0:02:56.6]}
10. e4 {[%clk 0:02:43.9]} 10... Bg4 {[%clk 0:02:55.1]} 11. Be3 {[%clk
0:02:41.2]} 11... Nc5 {[%clk 0:02:49.5]} 12. h3 {[%clk 0:02:39.1]} 12... Bxf3
{[%clk 0:02:48.5]} 13. Bxf3 {[%clk 0:02:38.4]} 13... Qb4 {[%clk 0:02:47.9]} 14.
Qc2 {[%clk 0:02:35.2]} 14... Rac8 {[%clk 0:02:42.7]} 15. a3 {[%clk 0:02:30.4]}
15... Qb6 {[%clk 0:02:38.7]} 16. Na4 {[%clk 0:02:25]} 16... Qb5 {[%clk
0:02:31.8]} 17. Nxc5 {[%clk 0:02:19.1]} 17... dxc5 {[%clk 0:02:31.4]} 18. Be2
{[%clk 0:02:12.4]} 18... Qa5 {[%clk 0:02:27.9]} 19. f4 {[%clk 0:02:00.9]} 19...
Rfd8 {[%clk 0:02:23.5]} 20. Rfd1 {[%clk 0:02:00.3]} 20... a6 {[%clk 0:02:19.7]}
21. Bf3 {[%clk 0:01:56.4]} 21... Nd7 {[%clk 0:02:05.9]} 22. e5 {[%clk
0:01:52.2]} 22... b5 {[%clk 0:01:57.3]} 23. Qf2 {[%clk 0:01:37]} 23... c4 {[%clk
0:01:51.7]} 24. e6 {[%clk 0:01:37.2]} 24... Nf6 {[%clk 0:01:36.8]} 25. Bb6
{[%clk 0:01:34.6]} 25... Qa4 {[%clk 0:01:37.2]} 26. Bxd8 {[%clk 0:01:32.9]}
26... Rxd8 {[%clk 0:01:37.1]} 27. exf7+ {[%clk 0:01:27.4]} 27... Kxf7 {[%clk
0:01:37.3]} 28. d6 {[%clk 0:01:17.1]} 28... exd6 {[%clk 0:01:31.4]} 29. Qb6
{[%clk 0:01:10.8]} 29... Re8 {[%clk 0:01:10.1]} 30. Rxd6 {[%clk 0:01:01.1]}
30... Qb3 {[%clk 0:01:07.5]} 31. Qb7+ {[%clk 0:00:40.1]} 31... Kf8 {[%clk
0:01:02.7]} 32. Rad1 {[%clk 0:00:20.1]} 32... Qe3+ {[%clk 0:00:45.6]} 33. Kg2
{[%clk 0:00:19.4]} 33... Re7 {[%clk 0:00:41.5]} 34. Rd8+ {[%clk 0:00:19.2]}
34... Kf7 {[%clk 0:00:41.7]} 35. R8d7 {[%clk 0:00:19.2]} 35... Nxd7 {[%clk
0:00:39.1]} 36. Rxd7 {[%clk 0:00:20.1]} 36... Bf6 {[%clk 0:00:24.1]} 37. Bd5+
{[%clk 0:00:17.9]} 37... Kg7 {[%clk 0:00:24]} 38. Rxe7+ {[%clk 0:00:16.6]} 38...
Bxe7 {[%clk 0:00:22.3]} 39. h4 {[%clk 0:00:10.3]} 39... Qe2+ {[%clk 0:00:21.2]}
40. Kg1 {[%clk 0:00:08.8]} 40... h5 {[%clk 0:00:19.9]} 41. Bf3 {[%clk
0:00:07.3]} 41... Qe3+ {[%clk 0:00:19.1]} 42. Kg2 {[%clk 0:00:07.4]} 42... Kf8
{[%clk 0:00:18.3]} 43. Qa8+ {[%clk 0:00:06.2]} 43... Kf7 {[%clk 0:00:17.7]} 44.
Qd5+ {[%clk 0:00:07.1]} 44... Qe6 {[%clk 0:00:16.5]} 45. Qd4 {[%clk 0:00:05.4]}
45... Bf6 {[%clk 0:00:13.6]} 46. Qa7+ {[%clk 0:00:05.3]} 46... Qe7 {[%clk
0:00:12.8]} 47. Qxa6 {[%clk 0:00:05.4]} 47... Bxb2 {[%clk 0:00:11.1]} 48. Qxb5
{[%clk 0:00:05.2]} 48... c3 {[%clk 0:00:09.5]} 49. Qc4+ {[%clk 0:00:04.6]} 49...
Kg7 {[%clk 0:00:08]} 50. Qd4+ {[%clk 0:00:04.3]} 50... Kh7 {[%clk 0:00:06]} 51.
Qc4 {[%clk 0:00:04]} 51... Qxa3 {[%clk 0:00:03.6]} 52. Qf7+ {[%clk 0:00:03.2]}
52... Kh6 {[%clk 0:00:03.2]} 53. Be4 {[%clk 0:00:04.1]} 53... Qd6 {[%clk
0:00:01.3]} 54. Qg8 {[%clk 0:00:02.5]} 1-0

[Event "*** Titled Tuesday Blitz"]
[Site "Chess.com"]
[Date "2021.02.16"]
[Round "9"]
[White "mary-sanna"]
[Black "Grineva_Marianna"]
[Result "0-1"]
[WhiteElo "2049"]
[BlackElo "2236"]
[TimeControl "180+1"]
[EndTime "11:49:11 PST"]
[Termination "Grineva_Marianna won by checkmate"]

1. d4 {[%clk 0:03:00.9]} 1... d6 {[%clk 0:03:00.4]} 2. e4 {[%clk 0:02:57.5]}
2... Nf6 {[%clk 0:02:58.2]} 3. Nc3 {[%clk 0:02:56.9]} 3... g6 {[%clk 0:02:57.9]}
4. Bf4 {[%clk 0:02:50.3]} 4... Nc6 {[%clk 0:02:53]} 5. Qd2 {[%clk 0:02:41.1]}
5... a6 {[%clk 0:02:45.7]} 6. f3 {[%clk 0:02:40.1]} 6... b5 {[%clk 0:02:45.9]}
7. O-O-O {[%clk 0:02:32]} 7... Bb7 {[%clk 0:02:25.8]} 8. Bh6 {[%clk 0:02:23.8]}
8... e5 {[%clk 0:02:04.1]} 9. Bxf8 {[%clk 0:02:20.2]} 9... Rxf8 {[%clk
0:01:55.5]} 10. dxe5 {[%clk 0:01:57.3]} 10... Nxe5 {[%clk 0:01:56.4]} 11. Nh3
{[%clk 0:01:38.6]} 11... Qd7 {[%clk 0:01:48.4]} 12. Qg5 {[%clk 0:01:34.5]} 12...
Qe7 {[%clk 0:01:31.3]} 13. Nf2 {[%clk 0:01:14.5]} 13... O-O-O {[%clk 0:01:19.8]}
14. Kb1 {[%clk 0:01:13.8]} 14... Rfe8 {[%clk 0:01:17.2]} 15. Be2 {[%clk
0:01:04.5]} 15... Nfd7 {[%clk 0:01:15]} 16. Qxe7 {[%clk 0:01:02.4]} 16... Rxe7
{[%clk 0:01:15.9]} 17. Nd5 {[%clk 0:01:02.6]} 17... Ree8 {[%clk 0:00:53.7]} 18.
h3 {[%clk 0:00:51.9]} 18... c6 {[%clk 0:00:46.4]} 19. Nc3 {[%clk 0:00:48.1]}
19... Nb6 {[%clk 0:00:45.9]} 20. Ng4 {[%clk 0:00:46.2]} 20... h5 {[%clk
0:00:37.4]} 21. Nxe5 {[%clk 0:00:40.5]} 21... Rxe5 {[%clk 0:00:34.8]} 22. Rd2
{[%clk 0:00:35.2]} 22... Kc7 {[%clk 0:00:34.3]} 23. Rhd1 {[%clk 0:00:34.4]}
23... Bc8 {[%clk 0:00:31.5]} 24. a3 {[%clk 0:00:22.3]} 24... f5 {[%clk
0:00:21.2]} 25. Bd3 {[%clk 0:00:19.7]} 25... f4 {[%clk 0:00:14.9]} 26. Ne2
{[%clk 0:00:19]} 26... g5 {[%clk 0:00:15.3]} 27. Nd4 {[%clk 0:00:18.8]} 27...
Nd7 {[%clk 0:00:08.7]} 28. Nf5 {[%clk 0:00:17.4]} 28... Nc5 {[%clk 0:00:08.9]}
29. b4 {[%clk 0:00:13.9]} 29... Nxd3 {[%clk 0:00:07.7]} 30. Rxd3 {[%clk
0:00:14.5]} 30... Bxf5 {[%clk 0:00:08.1]} 31. exf5 {[%clk 0:00:14.8]} 31... Rxf5
{[%clk 0:00:09]} 32. Re1 {[%clk 0:00:14.9]} 32... Rd7 {[%clk 0:00:08.8]} 33. Rd4
{[%clk 0:00:14]} 33... c5 {[%clk 0:00:08.8]} 34. bxc5 {[%clk 0:00:12.9]} 34...
dxc5 {[%clk 0:00:09.7]} 35. Rde4 {[%clk 0:00:12.7]} 35... Rfd5 {[%clk
0:00:08.6]} 36. Re6 {[%clk 0:00:12.7]} 36... R5d6 {[%clk 0:00:07.4]} 37. R6e5
{[%clk 0:00:12.8]} 37... Rd5 {[%clk 0:00:07.1]} 38. Re6 {[%clk 0:00:13.1]} 38...
R7d6 {[%clk 0:00:06.8]} 39. Re7+ {[%clk 0:00:13]} 39... Kc6 {[%clk 0:00:06.9]}
40. Rh7 {[%clk 0:00:13]} 40... c4 {[%clk 0:00:07.3]} 41. Ree7 {[%clk 0:00:12.5]}
41... Kc5 {[%clk 0:00:07.2]} 42. Rxh5 {[%clk 0:00:12.3]} 42... Kd4 {[%clk
0:00:07.3]} 43. Kb2 {[%clk 0:00:08.7]} 43... c3+ {[%clk 0:00:07.3]} 44. Kb3
{[%clk 0:00:08.5]} 44... a5 {[%clk 0:00:07.1]} 45. a4 {[%clk 0:00:08.4]} 45...
bxa4+ {[%clk 0:00:06.9]} 46. Kxa4 {[%clk 0:00:09.3]} 46... Rc5 {[%clk
0:00:07.3]} 47. Rg7 {[%clk 0:00:06.2]} 47... Rb6 {[%clk 0:00:07.1]} 48. Rgxg5
{[%clk 0:00:05.1]} 48... Rc4+ {[%clk 0:00:04.9]} 49. Ka3 {[%clk 0:00:05.4]}
49... Rb2 {[%clk 0:00:05.4]} 50. Rd5+ {[%clk 0:00:05.4]} 50... Ke3 {[%clk
0:00:05.1]} 51. Rb5 {[%clk 0:00:03.1]} 51... Rxc2 {[%clk 0:00:04.5]} 52. Rxa5
{[%clk 0:00:03.1]} 52... Rb2 {[%clk 0:00:03.9]} 53. Rab5 {[%clk 0:00:02.2]}
53... Rxb5 {[%clk 0:00:03.6]} 54. Rxb5 {[%clk 0:00:02.4]} 54... c2 {[%clk
0:00:04.1]} 55. Re5+ {[%clk 0:00:01.9]} 55... Kf2 {[%clk 0:00:04.5]} 56. Rd5
{[%clk 0:00:02.2]} 56... c1=Q+ {[%clk 0:00:04.3]} 57. Kb3 {[%clk 0:00:02.7]}
57... Qc2+ {[%clk 0:00:04.4]} 58. Ka3 {[%clk 0:00:02.7]} 58... Ra4# {[%clk
0:00:04.8]} 0-1